[Event "Masterklassen 2025"]
[Site "Uppsala, Sweden"]
[Date "2025.07.06"]
[Round "9.4"]
[White "Mashhadi, Peyman"]
[Black "Sundin, Emanuel"]
[Result "1-0"]
[TimeControl "90 min for 40 move + 30 min with an increment of 30 sec starting move 1"]
[WhiteFideId "1768581"]
[BlackFideId "1719173"]
[WhiteElo "2132"]
[BlackElo "2117"]

1. d4 {[%clk 01:30:52]} {[%emt 00:00:07]} d5 {[%clk 01:28:30]} {[%emt
00:02:30]} 2. Nf3 {[%clk 01:30:57]} {[%emt 00:00:25]} e6 {[%clk 01:28:48]}
{[%emt 00:00:13]} 3. c4 {[%clk 01:31:11]} {[%emt 00:00:15]} c6 {[%clk
01:29:00]} {[%emt 00:00:18]} 4. g3 {[%clk 01:31:32]} {[%emt 00:00:09]} dxc4
{[%clk 01:29:04]} {[%emt 00:00:27]} 5. Bg2 {[%clk 01:31:48]} {[%emt 00:00:13]}
b5 {[%clk 01:29:10]} {[%emt 00:00:25]} 6. O-O {[%clk 01:31:51]} {[%emt
00:00:26]} Bb7 {[%clk 01:29:05]} {[%emt 00:00:35]} 7. b3 {[%clk 01:31:40]}
{[%emt 00:00:41]} cxb3 {[%clk 01:26:27]} {[%emt 00:03:09]} 8. Qxb3 {[%clk
01:32:00]} {[%emt 00:00:09]} Nf6 {[%clk 01:26:22]} {[%emt 00:00:35]} 9. Ne5
{[%clk 01:31:08]} {[%emt 00:01:22]} Qc8 {[%clk 01:24:40]} {[%emt 00:02:13]} 10.
Nd2 {[%clk 01:20:59]} {[%emt 00:10:37]} Nbd7 {[%clk 01:20:05]} {[%emt
00:05:06]} 11. Ba3 {[%clk 01:14:03]} {[%emt 00:07:26]} Bxa3 {[%clk 01:03:08]}
{[%emt 00:17:27]} 12. Qxa3 {[%clk 01:14:17]} {[%emt 00:00:16]} c5 {[%clk
01:02:37]} {[%emt 00:01:01]} 13. Nxd7 {[%clk 00:59:19]} {[%emt 00:15:29]} Qxd7
{[%clk 00:54:36]} {[%emt 00:08:31]} 14. Bxb7 {[%clk 00:57:45]} {[%emt
00:02:04]} Qxb7 {[%clk 00:54:59]} {[%emt 00:00:07]} 15. dxc5 {[%clk 00:56:39]}
{[%emt 00:01:36]} O-O {[%clk 00:55:01]} {[%emt 00:00:28]} 16. Rac1 {[%clk
00:52:37]} {[%emt 00:04:30]} Qc7 {[%clk 00:43:28]} {[%emt 00:12:05]} 17. Qa6
{[%clk 00:50:12]} {[%emt 00:02:54]} Rab8 {[%clk 00:42:02]} {[%emt 00:01:56]} 18.
Nf3 {[%clk 00:46:02]} {[%emt 00:04:40]} Ne4 {[%clk 00:35:36]} {[%emt 00:06:57]}
19. Nd4 {[%clk 00:38:53]} {[%emt 00:07:39]} Nxc5 {[%clk 00:29:25]} {[%emt
00:06:40]} 20. Qc6 {[%clk 00:38:10]} {[%emt 00:01:14]} Qxc6 {[%clk 00:21:11]}
{[%emt 00:08:44]} 21. Nxc6 {[%clk 00:38:32]} {[%emt 00:00:07]} Ne4 {[%clk
00:17:59]} {[%emt 00:03:43]} 22. Nxb8 {[%clk 00:36:33]} {[%emt 00:02:29]} Rxb8
{[%clk 00:18:27]} {[%emt 00:00:02]} 23. Rfd1 {[%clk 00:31:40]} {[%emt
00:05:23]} Nf6 {[%clk 00:17:14]} {[%emt 00:01:42]} 24. Rc7 {[%clk 00:31:14]}
{[%emt 00:00:55]} a5 {[%clk 00:17:08]} {[%emt 00:00:37]} 25. Rb7 {[%clk
00:30:16]} {[%emt 00:01:28]} Rxb7 {[%clk 00:13:44]} {[%emt 00:03:55]} 26. Rd8+
{[%clk 00:30:37]} {[%emt 00:00:08]} Ne8 {[%clk 00:14:13]} {[%emt 00:00:02]} 27.
Rxe8# {[%clk 00:31:02]} {[%emt 00:00:05]} 1-0

[Event "Masterklassen 2025"]
[Site "Uppsala, Sweden"]
[Date "2025.07.06"]
[Round "9.5"]
[White "Lundberg, David"]
[Black "Nygren, David"]
[Result "0-1"]
[TimeControl "90 min for 40 move + 30 min with an increment of 30 sec starting move 1"]
[WhiteFideId "1707051"]
[BlackFideId "1704761"]
[WhiteElo "2193"]
[BlackElo "2094"]

1. e4 {[%clk 01:30:46]} {[%emt 00:00:13]} e6 {[%clk 01:30:53]} {[%emt
00:00:08]} 2. d4 {[%clk 01:31:07]} {[%emt 00:00:09]} d5 {[%clk 01:31:17]}
{[%emt 00:00:06]} 3. Nd2 {[%clk 01:31:31]} {[%emt 00:00:05]} c5 {[%clk
01:31:10]} {[%emt 00:00:38]} 4. exd5 {[%clk 01:31:43]} {[%emt 00:00:18]} exd5
{[%clk 01:31:29]} {[%emt 00:00:11]} 5. Ngf3 {[%clk 01:24:08]} {[%emt 00:08:05]}
Nf6 {[%clk 01:26:39]} {[%emt 00:05:21]} 6. Bb5+ {[%clk 01:14:53]} {[%emt
00:09:44]} Nc6 {[%clk 01:25:38]} {[%emt 00:01:32]} 7. O-O {[%clk 01:14:38]}
{[%emt 00:00:45]} Be7 {[%clk 01:25:11]} {[%emt 00:00:57]} 8. dxc5 {[%clk
01:12:40]} {[%emt 00:02:27]} O-O {[%clk 01:24:54]} {[%emt 00:00:46]} 9. Nb3
{[%clk 01:10:36]} {[%emt 00:02:35]} Bg4 {[%clk 01:21:27]} {[%emt 00:03:57]} 10.
c3 {[%clk 01:05:36]} {[%emt 00:05:30]} Ne4 {[%clk 01:18:23]} {[%emt 00:03:35]}
11. h3 {[%clk 00:47:24]} {[%emt 00:18:41]} Bh5 {[%clk 01:06:21]} {[%emt
00:12:32]} 12. Be3 {[%clk 00:44:39]} {[%emt 00:03:15]} a5 {[%clk 01:05:06]}
{[%emt 00:01:45]} 13. a4 {[%clk 00:43:17]} {[%emt 00:01:52]} Rc8 {[%clk
00:56:55]} {[%emt 00:08:42]} 14. Be2 {[%clk 00:40:23]} {[%emt 00:03:23]} Re8
{[%clk 00:48:12]} {[%emt 00:09:13]} 15. Re1 {[%clk 00:36:38]} {[%emt 00:04:14]}
Bf6 {[%clk 00:40:26]} {[%emt 00:08:17]} 16. Nbd4 {[%clk 00:18:30]} {[%emt
00:18:39]} Be7 {[%clk 00:33:54]} {[%emt 00:07:01]} 17. Nb3 {[%clk 00:15:12]}
{[%emt 00:03:48]} Bf6 {[%clk 00:30:16]} {[%emt 00:04:08]} 18. Qc2 {[%clk
00:13:14]} {[%emt 00:02:28]} Bg6 {[%clk 00:27:12]} {[%emt 00:03:34]} 19. Bd3
{[%clk 00:13:28]} {[%emt 00:00:14]} Ne5 {[%clk 00:26:22]} {[%emt 00:01:22]} 20.
Nxe5 {[%clk 00:13:24]} {[%emt 00:00:33]} Bxe5 {[%clk 00:26:03]} {[%emt
00:00:50]} 21. Bd4 {[%clk 00:11:34]} {[%emt 00:02:21]} Bb8 {[%clk 00:25:45]}
{[%emt 00:00:47]} 22. f3 {[%clk 00:06:28]} {[%emt 00:05:36]} Ng5 {[%clk
00:15:37]} {[%emt 00:10:37]} 23. Bxg6 {[%clk 00:06:45]} {[%emt 00:00:14]} hxg6
{[%clk 00:11:47]} {[%emt 00:04:21]} 24. Qf2 {[%clk 00:03:05]} {[%emt 00:04:09]}
Qc7 {[%clk 00:11:30]} {[%emt 00:00:46]} 25. Kf1 {[%clk 00:02:16]} {[%emt
00:01:20]} Qh2 {[%clk 00:08:49]} {[%emt 00:03:10]} 26. Qg1 {[%clk 00:01:46]}
{[%emt 00:01:00]} Qf4 {[%clk 00:07:44]} {[%emt 00:01:35]} 27. Qf2 {[%clk
00:00:58]} {[%emt 00:01:18]} Ne6 {[%clk 00:05:40]} {[%emt 00:02:35]} 28. Be3
{[%clk 00:00:44]} {[%emt 00:00:44]} Qc4+ {[%clk 00:06:04]} {[%emt 00:00:06]} 29.
Kg1 {[%clk 00:00:34]} {[%emt 00:00:39]} Qxb3 {[%clk 00:06:22]} {[%emt
00:00:13]} 30. Ra3 {[%clk 00:00:33]} {[%emt 00:00:30]} Qc4 {[%clk 00:06:40]}
{[%emt 00:00:12]} 0-1

[Event "Masterklassen 2025"]
[Site "Uppsala, Sweden"]
[Date "2025.07.06"]
[Round "9.6"]
[White "Odell-Johansson, Leo"]
[Black "Hammarstrom, Ulf"]
[Result "1/2-1/2"]
[TimeControl "90 min for 40 move + 30 min with an increment of 30 sec starting move 1"]
[WhiteFideId "1722727"]
[BlackFideId "1710214"]
[WhiteElo "1991"]
[BlackElo "2176"]

1. c4 {[%clk 01:30:57]} {[%emt 00:00:02]} Nf6 {[%clk 01:25:21]} {[%emt
00:05:38]} 2. Nc3 {[%clk 01:31:24]} {[%emt 00:00:04]} e6 {[%clk 01:25:40]}
{[%emt 00:00:12]} 3. e4 {[%clk 01:31:50]} {[%emt 00:00:03]} c5 {[%clk
01:25:49]} {[%emt 00:00:22]} 4. e5 {[%clk 01:31:17]} {[%emt 00:01:02]} Ng8
{[%clk 01:26:04]} {[%emt 00:00:15]} 5. Nf3 {[%clk 01:31:42]} {[%emt 00:00:06]}
Nc6 {[%clk 01:26:26]} {[%emt 00:00:08]} 6. d4 {[%clk 01:31:44]} {[%emt
00:00:27]} cxd4 {[%clk 01:26:50]} {[%emt 00:00:06]} 7. Nxd4 {[%clk 01:32:10]}
{[%emt 00:00:04]} Nxe5 {[%emt 00:00:32]} 8. Ndb5 {[%clk 01:31:25]} {[%emt
00:00:51]} a6 {[%clk 01:27:04]} {[%emt 00:00:40]} 9. Nd6+ {[%clk 01:30:42]}
{[%emt 00:01:12]} Bxd6 {[%clk 01:27:27]} {[%emt 00:00:06]} 10. Qxd6 {[%clk
01:31:06]} {[%emt 00:00:06]} f6 {[%clk 01:27:35]} {[%emt 00:00:23]} 11. Be3
{[%clk 01:16:29]} {[%emt 00:15:07]} Ne7 {[%clk 01:27:21]} {[%emt 00:00:44]} 12.
Qa3 {[%clk 01:05:07]} {[%emt 00:11:51]} Nf5 {[%clk 01:06:48]} {[%emt 00:21:04]}
13. Nb5 {[%clk 01:00:14]} {[%emt 00:05:23]} axb5 {[%clk 01:01:42]} {[%emt
00:05:37]} 14. Qxa8 {[%clk 01:00:29]} {[%emt 00:00:14]} Nxe3 {[%clk 01:01:45]}
{[%emt 00:00:27]} 15. fxe3 {[%clk 01:00:54]} {[%emt 00:00:04]} Qb6 {[%clk
00:53:09]} {[%emt 00:09:06]} 16. Qxc8+ {[%clk 00:46:36]} {[%emt 00:14:48]} Kf7
{[%clk 00:53:17]} {[%emt 00:00:22]} 17. Qxh8 {[%clk 00:47:01]} {[%emt
00:00:05]} Qxe3+ {[%clk 00:53:22]} {[%emt 00:00:25]} 18. Kd1 {[%clk 00:44:18]}
{[%emt 00:03:13]} Qd4+ {[%clk 00:52:22]} {[%emt 00:01:30]} 19. Kc2 {[%clk
00:42:05]} {[%emt 00:02:43]} Qe4+ {[%clk 00:52:04]} {[%emt 00:00:48]} 20. Kc1
{[%clk 00:23:57]} {[%emt 00:18:38]} 1/2-1/2

[Event "Masterklassen 2025"]
[Site "Uppsala, Sweden"]
[Date "2025.07.06"]
[Round "9.7"]
[White "Hagevi, Vidar"]
[Black "Johnson, Daniel"]
[Result "0-1"]
[TimeControl "90 min for 40 move + 30 min with an increment of 30 sec starting move 1"]
[WhiteFideId "1767526"]
[BlackFideId "1721283"]
[WhiteElo "2139"]
[BlackElo "2175"]

1. d4 {[%clk 01:30:56]} {[%emt 00:00:03]} Nf6 {[%clk 01:11:06]} {[%emt
00:19:48]} 2. c4 {[%clk 01:31:19]} {[%emt 00:00:14]} e6 {[%clk 01:11:29]}
{[%emt 00:00:08]} 3. Nf3 {[%clk 01:31:37]} {[%emt 00:00:11]} d5 {[%clk
01:11:51]} {[%emt 00:00:08]} 4. g3 {[%clk 01:31:58]} {[%emt 00:00:08]} h6
{[%clk 01:09:49]} {[%emt 00:02:33]} 5. Bg2 {[%clk 01:32:03]} {[%emt 00:00:25]}
Bd6 {[%clk 01:10:01]} {[%emt 00:00:18]} 6. O-O {[%clk 01:31:00]} {[%emt
00:01:32]} O-O {[%clk 01:10:09]} {[%emt 00:00:22]} 7. Qc2 {[%clk 01:29:14]}
{[%emt 00:02:16]} b6 {[%clk 01:07:38]} {[%emt 00:03:02]} 8. Nc3 {[%clk
01:26:13]} {[%emt 00:03:31]} Bb7 {[%clk 01:07:41]} {[%emt 00:00:27]} 9. cxd5
{[%clk 01:25:50]} {[%emt 00:00:53]} exd5 {[%clk 01:07:39]} {[%emt 00:00:31]} 10.
Rd1 {[%clk 01:23:51]} {[%emt 00:02:29]} Re8 {[%clk 01:04:03]} {[%emt 00:04:07]}
11. Nh4 {[%clk 01:14:03]} {[%emt 00:10:18]} Bf8 {[%clk 00:44:14]} {[%emt
00:20:18]} 12. Nf5 {[%clk 01:11:21]} {[%emt 00:03:12]} Na6 {[%clk 00:35:45]}
{[%emt 00:09:00]} 13. b3 {[%clk 00:59:46]} {[%emt 00:12:06]} Rc8 {[%clk
00:31:20]} {[%emt 00:04:54]} 14. Bb2 {[%clk 00:56:35]} {[%emt 00:03:41]} c6
{[%clk 00:18:08]} {[%emt 00:13:42]} 15. Rac1 {[%clk 00:53:27]} {[%emt
00:03:38]} Nc7 {[%clk 00:16:52]} {[%emt 00:01:46]} 16. e3 {[%clk 00:30:38]}
{[%emt 00:23:19]} Qd7 {[%clk 00:14:08]} {[%emt 00:03:15]} 17. Bh3 {[%clk
00:24:26]} {[%emt 00:06:41]} Ne6 {[%clk 00:14:19]} {[%emt 00:00:19]} 18. Nh4
{[%clk 00:21:52]} {[%emt 00:03:02]} Qd8 {[%clk 00:06:01]} {[%emt 00:08:50]} 19.
Nf3 {[%clk 00:19:52]} {[%emt 00:02:30]} Rc7 {[%clk 00:06:07]} {[%emt 00:00:24]}
20. Ne5 {[%clk 00:19:15]} {[%emt 00:01:07]} Qa8 {[%clk 00:05:03]} {[%emt
00:01:34]} 21. Bg2 {[%clk 00:15:39]} {[%emt 00:04:06]} Rd8 {[%clk 00:05:00]}
{[%emt 00:00:33]} 22. Qe2 {[%clk 00:12:09]} {[%emt 00:04:00]} Re8 {[%clk
00:03:49]} {[%emt 00:01:41]} 23. Ng4 {[%clk 00:11:59]} {[%emt 00:00:40]} Nxg4
{[%clk 00:01:50]} {[%emt 00:02:30]} 24. Qxg4 {[%clk 00:12:19]} {[%emt
00:00:08]} Qc8 {[%clk 00:02:16]} {[%emt 00:00:05]} 25. h4 {[%clk 00:11:55]}
{[%emt 00:00:54]} Qd8 {[%clk 00:01:29]} {[%emt 00:01:17]} 26. Qf5 {[%clk
00:11:15]} {[%emt 00:01:08]} Bc8 {[%clk 00:01:42]} {[%emt 00:00:19]} 27. Qf3
{[%clk 00:11:31]} {[%emt 00:00:13]} Bb7 {[%clk 00:01:15]} {[%emt 00:00:56]} 28.
Ne2 {[%clk 00:09:05]} {[%emt 00:02:58]} Bd6 {[%clk 00:01:03]} {[%emt 00:00:41]}
29. Rc2 {[%clk 00:07:55]} {[%emt 00:01:40]} Rce7 {[%clk 00:01:30]} {[%emt
00:00:05]} 30. Nc1 {[%clk 00:07:51]} {[%emt 00:00:33]} Nf8 {[%clk 00:01:37]}
{[%emt 00:00:23]} 31. Nd3 {[%clk 00:08:05]} {[%emt 00:00:15]} Nd7 {[%clk
00:01:55]} {[%emt 00:00:12]} 32. Qf5 {[%clk 00:06:36]} {[%emt 00:01:59]} Re6
{[%clk 00:01:27]} {[%emt 00:00:57]} 33. Bh3 {[%clk 00:05:49]} {[%emt 00:01:18]}
R6e7 {[%clk 00:01:55]} {[%emt 00:00:03]} 34. Rdc1 {[%clk 00:05:19]} {[%emt
00:00:59]} Qb8 {[%clk 00:02:06]} {[%emt 00:00:17]} 35. Bg2 {[%clk 00:04:20]}
{[%emt 00:01:31]} Qd8 {[%clk 00:01:01]} {[%emt 00:01:36]} 36. a3 {[%clk
00:03:28]} {[%emt 00:01:22]} Re6 {[%clk 00:01:06]} {[%emt 00:00:25]} 37. Bh3
{[%clk 00:03:39]} {[%emt 00:00:18]} R6e7 {[%clk 00:01:24]} {[%emt 00:00:13]} 38.
Qf3 {[%clk 00:02:20]} {[%emt 00:01:49]} Qb8 {[%clk 00:01:21]} {[%emt 00:00:31]}
39. Bg2 {[%clk 00:00:46]} {[%emt 00:02:07]} Nf6 {[%clk 00:01:29]} {[%emt
00:00:21]} 40. Qf5 {[%clk 00:00:38]} {[%emt 00:00:39]} Bc8 {[%clk 00:01:41]}
{[%emt 00:00:17]} 0-1

[Event "Masterklassen 2025"]
[Site "Uppsala, Sweden"]
[Date "2025.07.06"]
[Round "9.8"]
[White "Karde, Douglas"]
[Black "Granath, Jonas"]
[Result "1-0"]
[TimeControl "90 min for 40 move + 30 min with an increment of 30 sec starting move 1"]
[WhiteFideId "1761498"]
[BlackFideId "1761013"]
[WhiteElo "2064"]
[BlackElo "2008"]

1. e4 {[%clk 01:30:57]} {[%emt 00:00:02]} e5 {[%clk 01:30:53]} {[%emt
00:00:08]} 2. f4 {[%clk 01:31:24]} {[%emt 00:00:03]} d5 {[%clk 01:31:16]}
{[%emt 00:00:07]} 3. exd5 {[%clk 01:31:49]} {[%emt 00:00:05]} exf4 {[%clk
01:31:33]} {[%emt 00:00:13]} 4. Nf3 {[%clk 01:32:14]} {[%emt 00:00:05]} Nf6
{[%clk 01:31:55]} {[%emt 00:00:08]} 5. c4 {[%clk 01:32:41]} {[%emt 00:00:03]}
c6 {[%clk 01:32:05]} {[%emt 00:00:20]} 6. Nc3 {[%clk 01:33:09]} {[%emt
00:00:03]} cxd5 {[%clk 01:31:37]} {[%emt 00:00:57]} 7. cxd5 {[%clk 01:33:32]}
{[%emt 00:00:07]} Nxd5 {[%clk 01:31:11]} {[%emt 00:00:57]} 8. Bc4 {[%clk
01:33:57]} {[%emt 00:00:04]} Be6 {[%clk 01:29:51]} {[%emt 00:01:50]} 9. Qb3
{[%clk 01:34:21]} {[%emt 00:00:06]} Nc7 {[%clk 01:19:12]} {[%emt 00:11:09]} 10.
Bxe6 {[%clk 01:30:49]} {[%emt 00:04:03]} Nxe6 {[%clk 01:16:46]} {[%emt
00:02:56]} 11. d4 {[%clk 01:28:38]} {[%emt 00:02:40]} Be7 {[%clk 00:57:35]}
{[%emt 00:19:40]} 12. Qxb7 {[%clk 01:24:49]} {[%emt 00:04:19]} Nd7 {[%clk
00:56:18]} {[%emt 00:01:48]} 13. O-O {[%clk 01:23:19]} {[%emt 00:01:58]} O-O
{[%clk 00:56:02]} {[%emt 00:00:48]} 14. Ne5 {[%clk 01:03:07]} {[%emt 00:20:41]}
Nxe5 {[%clk 00:38:16]} {[%emt 00:18:17]} 15. dxe5 {[%clk 01:03:27]} {[%emt
00:00:11]} Bc5+ {[%clk 00:32:05]} {[%emt 00:06:40]} 16. Kh1 {[%clk 01:03:43]}
{[%emt 00:00:14]} Be3 {[%clk 00:31:56]} {[%emt 00:00:39]} 17. Bxe3 {[%clk
00:56:25]} {[%emt 00:07:48]} fxe3 {[%clk 00:32:05]} {[%emt 00:00:21]} 18. Rae1
{[%clk 00:56:27]} {[%emt 00:00:27]} Qb8 {[%clk 00:23:39]} {[%emt 00:08:57]} 19.
Qe4 {[%clk 00:54:43]} {[%emt 00:02:14]} Qxb2 {[%clk 00:22:48]} {[%emt
00:01:22]} 20. Rxe3 {[%clk 00:55:02]} {[%emt 00:00:11]} Rac8 {[%clk 00:22:39]}
{[%emt 00:00:39]} 21. Nd5 {[%clk 00:53:41]} {[%emt 00:01:50]} Rfe8 {[%clk
00:21:27]} {[%emt 00:01:43]} 22. Qf5 {[%clk 00:35:32]} {[%emt 00:18:38]} Qb7
{[%clk 00:19:37]} {[%emt 00:02:20]} 23. Nf6+ {[%clk 00:29:54]} {[%emt
00:06:08]} gxf6 {[%clk 00:19:37]} {[%emt 00:00:30]} 24. exf6 {[%clk 00:30:00]}
{[%emt 00:00:23]} Kh8 {[%clk 00:09:51]} {[%emt 00:10:16]} 25. Rh3 {[%clk
00:29:50]} {[%emt 00:00:41]} Nf8 {[%clk 00:10:01]} {[%emt 00:00:20]} 26. Qg5
{[%clk 00:29:59]} {[%emt 00:00:21]} Ne6 {[%clk 00:08:15]} {[%emt 00:02:17]} 27.
Qh4 {[%clk 00:28:52]} {[%emt 00:01:36]} Ng5 {[%clk 00:05:32]} {[%emt 00:03:13]}
28. Qxg5 {[%clk 00:29:15]} {[%emt 00:00:06]} Rg8 {[%clk 00:04:42]} {[%emt
00:01:20]} 29. Rxh7+ {[%clk 00:29:39]} {[%emt 00:00:07]} Kxh7 {[%clk 00:05:08]}
{[%emt 00:00:04]} 30. Qh5# {[%clk 00:30:03]} {[%emt 00:00:06]} 1-0